bitfinex/quotes_ETHUSD_20240707
["timestamp","ask_amount","ask_price","bid_price","bid_amount"]
[1720327072888,1.13752424,3043.7,3043.1,2.30027]
[1720327073194,1.13752424,3043.6,3043.1,2.30027]
[1720327073493,3.80966087,3043.8,3043.1,2.30027]
[1720327073700,1.13752614,3043.7,3043.1,2.30027]
[1720327073880,1.13752799,3043.6,3043.1,2.30027]
[1720327074113,4.59147816,3043.8,3043.1,2.30027]
[1720327074283,3.11024163,3043.7,3043.0,2.2946]
[1720327074460,3.97383034,3043.6,3043.0,2.2946]
[1720327074664,1.13752769,3043.5,3042.8,0.1111261]
[1720327074970,1.36716087,3043.3,3042.8,0.1111261]
[1720327075176,1.13752769,3043.2,3042.8,0.1111261]
[1720327075378,1.1377322,3043.1,3042.8,0.1111261]
[1720327075578,1.36716087,3043.3,3042.8,0.1111261]
[1720327075579,1.36716087,3043.2,3042.8,0.1111261]
[1720327075798,1.13772771,3043.1,3042.8,0.1111261]
[1720327076010,1.36716087,3043.2,3042.8,0.1111261]
[1720327076170,1.36716087,3043.3,3042.8,0.1111261]
[1720327076500,1.13767414,3043.2,3042.8,0.1111261]
[1720327076688,1.36716087,3043.3,3042.8,0.1111261]
[1720327077009,1.13767046,3043.2,3043.1,2.30028]
[1720327077208,1.36716087,3043.7,3043.1,4.59488]
[1720327077392,1.36716087,3043.8,3043.1,4.59488]
[1720327077704,3.11052859,3043.7,3043.1,4.59488]
[1720327077870,1.36716087,3043.7,3043.3,2.30012]
[1720327078266,0.60595591,3043.6,3043.3,2.30012]
[1720327078608,1.36716087,3043.6,3043.1,4.59488]
[1720327081178,1.36957349,3043.6,3043.2,0.10617471]
[1720327081580,1.36956978,3043.6,3043.2,0.10617471]
[1720327083388,0.60586051,3043.5,3043.2,0.10617471]
[1720327083615,1.36956978,3043.6,3043.2,0.10617471]
[1720327083812,0.60584701,3043.5,3043.2,0.10617471]
[1720327083986,1.36956978,3043.4,3042.8,0.1111261]
[1720327084308,1.36956978,3043.4,3043.3,0.10612919]
[1720327084612,3.11292418,3043.4,3043.3,0.10612919]
[1720327084820,3.11292418,3043.4,3042.8,0.1111261]
[1720327084987,1.36956978,3043.4,3043.3,0.10612919]
[1720327085184,3.11292193,3043.4,3042.8,2.47735547]
[1720327085400,1.36956978,3043.5,3043.3,2.40072919]
[1720327085573,1.36956978,3043.5,3043.3,2.2946]
[1720327085776,1.36956978,3043.6,3043.4,0.10608367]
[1720327086225,1.36956978,3043.8,3043.5,2.2946]
[1720327086386,1.36956978,3044.0,3043.6,2.29985]
[1720327086595,1.36956978,3044.3,3043.9,2.29968]
[1720327087106,1.36956978,3044.4,3044.0,0.10586252]
[1720327087324,3.11251626,3044.3,3044.0,0.10586252]
[1720327087614,1.36956978,3044.4,3044.0,0.10586252]
[1720327087972,1.36956978,3044.4,3043.9,2.29968]
[1720327089587,1.36956978,3044.5,3044.0,0.10572909]
[1720327089915,1.44533367,3044.4,3043.7,4.59443]
[1720327090111,1.13724215,3044.3,3043.7,4.59443]
[1720327090436,1.6776613,3044.4,3043.8,0.10582009]
[1720327090720,3.11067021,3044.3,3043.4,4.59784]
[1720327090872,1.36762113,3044.3,3043.9,0.10577459]
[1720327091081,1.30493382,3044.2,3043.4,4.59784]
[1720327091310,0.16757127,3044.2,3043.4,4.59784]
[1720327091511,0.16757127,3044.2,3043.5,0.10598441]
[1720327092325,1.36750045,3044.3,3043.5,2.40592441]
[1720327092476,1.36750045,3044.3,3043.7,2.29981]
[1720327092676,1.36750045,3044.3,3043.9,2.2978]
[1720327093017,1.36750045,3044.3,3044.0,0.10576986]
[1720327093484,1.36750045,3044.4,3044.0,0.10576986]
[1720327093699,1.13733802,3044.3,3044.0,0.10576986]
[1720327094005,1.36630848,3044.4,3044.0,0.10576986]
[1720327094206,1.67372789,3044.4,3044.0,0.10576986]
[1720327094392,2.4201,3044.3,3043.6,2.29988]
[1720327094595,2.4201,3044.3,3044.1,0.10570583]
[1720327094794,2.4201,3044.3,3043.6,2.29988]
[1720327095009,2.4201,3044.3,3044.2,0.10566034]
[1720327095194,0.40938279,3044.3,3043.7,2.29983]
[1720327095393,1.36630848,3044.4,3044.2,0.10566034]
[1720327095595,1.36630848,3044.4,3043.7,2.29983]
[1720327095912,1.36630848,3044.4,3044.3,0.10561485]
[1720327096214,2.50361984,3044.4,3043.8,2.36544975]
[1720327096519,1.36630848,3044.5,3044.3,0.10561485]
[1720327096725,1.13729854,3044.4,3043.8,2.2978]
[1720327097217,1.13735381,3044.3,3043.5,9.5778]
[1720327097394,3.66505171,3044.4,3043.5,11.87775]
[1720327097597,3.10840147,3044.3,3043.5,11.87775]
[1720327097795,1.13736689,3044.2,3043.5,11.87775]
[1720327097997,3.66505171,3044.4,3043.5,11.87775]
[1720327098202,2.5031186,3044.3,3043.5,11.87775]
[1720327098414,1.36575171,3044.3,3043.5,11.87775]
[1720327098922,1.36575171,3044.3,3043.5,9.5778]
[1720327099187,2.50314883,3044.2,3043.5,9.5778]
[1720327099335,1.13741084,3044.1,3043.5,9.5778]
[1720327099494,1.36575171,3044.2,3043.5,9.5778]
[1720327099690,1.13741421,3044.1,3043.5,9.5778]
[1720327099890,1.90297585,3044.2,3043.5,9.5778]
[1720327100120,1.90288274,3044.2,3043.5,9.5778]
[1720327100506,2.4478,3044.1,3043.3,2.401]
[1720327100720,1.36569677,3043.9,3043.0,2.401]
[1720327100892,2.29988,3043.7,3042.8,2.4116061]
[1720327101107,1.13761502,3043.6,3042.8,2.4116061]
[1720327101305,2.3001,3043.4,3042.8,0.1111261]
[1720327101712,3.66579677,3043.4,3042.8,0.1111261]
[1720327102019,1.13774025,3043.3,3042.8,0.1111261]
[1720327102220,3.66579677,3043.4,3042.9,0.10614636]
[1720327102427,0.53729177,3043.3,3042.8,0.1111261]
[1720327102597,0.53729177,3043.3,3043.0,0.10610083]
[1720327102908,0.53729177,3043.3,3042.8,0.1111261]
[1720327103306,0.53729177,3043.3,3042.9,0.10614636]
[1720327103518,1.36520326,3043.5,3042.9,0.10614636]
[1720327103719,1.36520326,3043.5,3042.8,0.1111261]
[1720327104512,3.10801621,3043.4,3042.8,0.1111261]
[1720327104712,1.36520326,3043.4,3042.8,0.1111261]
[1720327105005,1.36520326,3043.5,3042.9,0.10614636]
[1720327105334,0.59677575,3043.4,3042.8,0.1111261]
[1720327105765,0.59677575,3043.4,3042.9,0.10614636]
[1720327107434,4.26168394,3043.6,3042.9,0.10614636]
[1720327108319,6.70948394,3043.6,3042.9,0.10614636]
[1720327108515,1.36520326,3043.5,3042.9,0.10614636]
[1720327109370,3.66518326,3043.5,3042.9,0.10614636]
[1720327109556,2.29998,3043.5,3042.9,0.10614636]
[1720327109733,0.67095239,3043.4,3042.9,0.10614636]
[1720327111460,4.40873682,3043.6,3042.9,0.10614636]
[1720327112043,1.96093682,3043.6,3042.9,0.10614636]
[1720327112241,4.96093682,3043.6,3042.9,0.10614636]
[1720327112441,4.96093682,3043.6,3042.8,0.1111261]
[1720327112653,4.36439614,3043.6,3042.9,2.66516409]
[1720327112866,1.36439614,3043.6,3042.9,2.66516409]
[1720327113028,1.36431838,3043.8,3043.0,2.3003]
[1720327113230,4.36431838,3043.9,3043.1,0.10634997]
[1720327113570,4.36431838,3043.9,3043.1,2.36599632]
[1720327113728,4.36431838,3043.9,3043.2,2.30018]
[1720327113930,4.36431838,3043.9,3043.2,0.10630445]
[1720327114386,4.36431838,3043.9,3043.2,2.40649445]
[1720327114687,3.0,3043.9,3043.2,2.40649445]
[1720327114884,4.36431838,3043.9,3043.2,2.40649445]
[1720327115578,1.36431838,3043.8,3043.2,0.10630445]
[1720327115952,1.36431838,3043.8,3042.9,4.79341]
[1720327115953,1.36431838,3043.8,3043.1,2.30027]
[1720327116144,3.0,3043.9,3043.3,0.10625893]
[1720327116344,1.36428515,3043.9,3043.2,0.10630445]
[1720327116568,4.36428515,3043.9,3043.2,0.10630445]
[1720327119675,1.13753201,3043.8,3043.2,0.10630445]
[1720327119979,3.0,3043.8,3043.2,0.10630445]
[1720327120343,4.36428515,3043.9,3043.2,0.10630445]
[1720327120542,1.1375365,3043.8,3043.2,0.10630445]
[1720327120746,3.0,3043.8,3043.2,0.10630445]
[1720327121383,4.36428515,3043.9,3043.2,0.10630445]
[1720327121548,1.13753589,3043.8,3043.2,0.10630445]
[1720327121744,3.0,3043.8,3043.2,0.10630445]
[1720327122267,1.36428515,3043.9,3043.2,0.10630445]
[1720327122268,4.36428515,3043.9,3043.2,0.10630445]
[1720327122486,2.50182409,3043.8,3043.2,0.10630445]
[1720327122645,3.0,3043.9,3043.2,0.10630445]
[1720327122847,1.13753151,3043.8,3043.2,0.10630445]
[1720327123047,3.0,3043.8,3043.2,0.10630445]
[1720327123464,4.36427169,3043.9,3043.2,0.10630445]
[1720327123749,1.13753128,3043.8,3043.2,0.10630445]
[1720327123975,3.0,3043.8,3043.2,0.10630445]
[1720327124178,3.0,3043.8,3043.3,2.3414]
[1720327124403,4.36427169,3043.9,3043.3,2.3414]
[1720327124619,1.13752128,3043.8,3043.4,0.10615038]
[1720327124823,4.36427169,3043.9,3043.4,0.10615038]
[1720327125000,1.13752128,3043.8,3043.4,0.10615038]
[1720327125199,3.0,3043.8,3043.4,0.10615038]
[1720327125400,1.36427169,3043.9,3043.4,0.10615038]
[1720327125723,3.53427169,3044.0,3043.4,0.10615038]
[1720327125921,1.13746393,3043.9,3043.4,0.10615038]
[1720327126106,2.17,3044.0,3043.4,0.10615038]
[1720327126299,1.13743823,3043.9,3043.4,0.10615038]
[1720327126499,5.17,3044.0,3043.4,0.10615038]
[1720327126686,1.13743827,3043.9,3043.4,0.10615038]
[1720327126882,5.17,3044.0,3043.4,0.10615038]
[1720327127087,1.13743972,3043.9,3043.4,0.10615038]
[1720327127287,5.17,3044.0,3043.4,0.10615038]
[1720327127513,1.13743741,3043.9,3043.4,0.10615038]
[1720327127710,5.17,3044.0,3043.4,0.10615038]
[1720327127913,1.13743746,3043.9,3043.4,0.10615038]
[1720327128111,5.17,3044.0,3043.4,0.10615038]
[1720327128392,1.13743813,3043.9,3043.4,2.40620038]
[1720327128607,2.17,3044.0,3043.4,2.40620038]
[1720327128811,1.13742495,3043.9,3043.4,2.40620038]
[1720327129018,2.17,3044.0,3043.4,2.47190666]
[1720327129222,2.17,3044.0,3043.5,2.3414]
[1720327129406,2.17,3044.0,3043.6,0.10598891]
[1720327129808,1.36441252,3044.2,3043.6,0.10598891]
[1720327130007,1.13740778,3044.1,3043.6,0.10598891]
[1720327130209,1.13740778,3044.0,3043.6,0.10598891]
[1720327130392,3.43719066,3043.9,3043.6,0.10598891]
[1720327130588,2.29988,3043.7,3042.8,2.4326261]
[1720327130926,1.13746066,3043.6,3042.9,0.10617043]
[1720327131140,2.50187318,3043.6,3042.9,0.10617043]
[1720327131423,3.43749066,3043.5,3042.9,0.10617043]
[1720327131628,1.13746066,3043.4,3042.9,0.10617043]
[1720327131834,3.43753066,3043.4,3042.9,0.10617043]
[1720327132019,1.13746066,3043.3,3042.9,0.10617043]
[1720327132334,2.30007,3043.4,3042.9,0.10617043]
[1720327132540,1.50415547,3043.3,3042.9,0.10617043]
[1720327132837,1.13770722,3043.2,3042.9,0.10617043]
[1720327135434,2.66657825,3043.3,3042.9,0.10617043]
[1720327135954,1.13775946,3043.2,3042.8,0.1111261]
[1720327136305,1.13775946,3043.2,3042.9,0.10281845]
[1720327136700,1.65463448,3043.2,3042.9,0.10281845]
[1720327136902,1.13775946,3043.1,3042.8,0.1111261]
[1720327137108,1.13775946,3043.1,3042.9,0.10285738]
[1720327137510,3.43804946,3043.1,3042.9,0.10285738]
[1720327137841,2.30029,3043.1,3042.9,0.10285738]
[1720327138041,3.43821325,3043.0,3042.9,0.10285738]
[1720327138529,2.30036,3043.0,3042.8,0.1111261]
[1720327138733,1.13788579,3042.9,3042.8,0.1111261]
[1720327139033,1.13786941,3042.9,3042.8,0.1111261]
[1720327139648,2.04942367,3043.1,3042.8,0.1111261]
[1720327139857,1.13783965,3043.0,3042.8,0.1111261]
[1720327140165,4.34970367,3043.1,3042.8,0.1111261]
[1720327140483,1.57282783,3043.0,3042.8,0.1111261]
[1720327140781,0.43497037,3043.0,3042.8,0.1111261]
[1720327141479,2.73533037,3043.0,3042.8,0.1111261]
[1720327141668,4.09976451,3043.0,3042.8,0.1111261]
[1720327142033,1.13789924,3042.9,3042.8,0.1111261]
[1720327142475,2.50233338,3042.9,3042.8,0.1111261]
[1720327143364,1.13789924,3042.9,3042.8,0.1111261]
[1720327144092,4.09976451,3043.0,3042.8,0.1111261]
[1720327147363,4.09963626,3043.0,3042.8,0.1111261]
[1720327147767,4.09944386,3043.0,3042.8,0.1111261]
[1720327149762,2.88086892,3042.9,3042.8,0.1111261]
[1720327150008,5.98770709,3042.9,3042.8,0.1111261]
[1720327150566,4.84981084,3042.9,3042.8,0.1111261]
[1720327150766,5.98777914,3042.9,3042.8,0.1111261]
[1720327151286,5.38295071,3042.9,3042.8,0.1111261]
[1720327153278,9.92405628,3042.9,3042.8,0.1111261]
[1720327153471,18.96288177,3042.9,3042.8,0.1111261]
[1720327153670,17.55771569,3042.9,3042.8,0.1111261]
[1720327154005,16.55252086,3042.9,3042.8,0.1111261]
[1720327154210,17.33070002,3042.9,3042.8,0.1111261]
[1720327154381,14.80197453,3042.9,3042.8,0.1111261]
[1720327154580,12.75794312,3042.9,3042.8,0.1111261]
[1720327154893,12.42035184,3042.9,3042.8,0.1111261]
[1720327155225,12.42029879,3042.9,3042.8,0.1111261]
[1720327155374,7.62376824,3042.9,3042.8,0.1111261]
[1720327155574,8.38108465,3042.9,3042.8,0.1111261]
[1720327155806,6.68539041,3042.9,3042.8,0.1111261]
[1720327155993,3.0,3042.9,3042.8,0.1111261]
[1720327156200,4.13792923,3042.9,3042.8,0.1111261]
[1720327156509,2.30043,3042.9,3042.8,0.1111261]
[1720327156694,5.73883326,3042.9,3042.8,0.1111261]
[1720327156881,7.10079961,3042.9,3042.8,0.1111261]
[1720327157211,6.85090949,3042.9,3042.8,0.1111261]
[1720327157404,6.85097877,3042.9,3042.8,0.1111261]
[1720327157605,9.85097877,3042.9,3042.8,0.1111261]
[1720327157785,11.21280305,3042.9,3042.8,0.1111261]
[1720327158189,9.85097877,3042.9,3042.8,0.1111261]
[1720327158376,11.2127184,3042.9,3042.8,0.1111261]
[1720327158713,11.21269478,3042.9,3042.8,0.1111261]
[1720327160018,11.21269616,3042.9,3042.8,0.1111261]
[1720327160167,11.2120596,3042.9,3042.8,0.1111261]
[1720327161712,9.85095653,3042.9,3042.8,0.1111261]
[1720327161912,11.2120596,3042.9,3042.8,0.1111261]
[1720327162305,9.85095653,3042.9,3042.8,0.1111261]
[1720327162610,11.55201708,3042.9,3042.8,0.1111261]
[1720327162811,9.85095653,3042.9,3042.8,0.1111261]
[1720327163127,8.71291283,3042.9,3042.8,0.1111261]
[1720327163330,11.55177315,3042.9,3042.8,0.1111261]
[1720327163477,10.18863411,3042.9,3042.8,0.1111261]
[1720327164211,11.88897374,3042.9,3042.8,0.1111261]
[1720327164420,11.55135021,3042.9,3042.8,0.1111261]
[1720327164573,9.85101058,3042.9,3042.8,0.1111261]
[1720327164778,11.55121466,3042.9,3042.8,0.1111261]
[1720327165692,9.85101058,3042.9,3042.8,0.1111261]
[1720327165894,11.55120797,3042.9,3042.8,0.1111261]
[1720327166129,12.15144058,3042.9,3042.8,0.1111261]
[1720327166341,11.56334283,3042.9,3042.8,0.1111261]
[1720327166508,12.70151427,3042.9,3042.8,0.1111261]
[1720327166705,8.71291283,3042.9,3042.8,0.1111261]
[1720327166905,10.98919607,3042.9,3042.8,0.1111261]
[1720327167104,9.85105682,3042.9,3042.8,0.1111261]
[1720327167811,11.55139766,3042.9,3042.8,0.1111261]
[1720327168012,8.71291283,3042.9,3042.8,0.1111261]
[1720327168334,11.55130962,3042.9,3042.8,0.1111261]
[1720327169200,3.61042672,3042.9,3042.8,0.1111261]
[1720327169457,1.13809193,3042.9,3042.8,0.1111261]
[1720327169733,1.13797507,3042.9,3042.8,0.21456117]
[1720327169895,1.13797507,3042.9,3042.8,0.1111261]
[1720327170098,5.73883507,3042.9,3042.8,0.1111261]
[1720327170299,9.57520857,3042.9,3042.8,0.1111261]
[1720327170503,11.04294449,3042.9,3042.8,0.1111261]
[1720327170755,14.04294449,3042.9,3042.8,0.1111261]
[1720327171043,12.34222761,3042.9,3042.8,0.1111261]
[1720327171337,14.04294449,3042.9,3042.8,0.1111261]
[1720327171537,12.34222761,3042.9,3042.8,0.1111261]
[1720327171900,14.38308786,3042.9,3042.8,0.1111261]
[1720327172124,14.72094316,3042.9,3042.8,0.1111261]
[1720327172699,12.68008291,3042.9,3042.8,0.1111261]
[1720327172913,14.72119524,3042.9,3042.8,0.1111261]
[1720327173100,14.94916981,3042.9,3042.8,0.1111261]
[1720327173301,17.24959981,3042.9,3042.8,0.1111261]
[1720327173506,17.24959981,3042.9,3042.1,0.10133752]
[1720327173507,2.30096,3042.2,3042.1,0.10133752]
[1720327173702,5.26002889,3042.2,3042.1,0.20512294]
[1720327173916,6.89911707,3042.2,3042.1,0.10133752]
[1720327174252,2.30172,3041.2,3040.1,0.33376969]
[1720327174555,2.30172,3041.2,3040.2,0.09767216]
[1720327174556,1.36025524,3040.5,3040.2,0.09767216]
[1720327174845,11.06535557,3041.1,3040.2,2.3957]
[1720327174846,3.66208524,3041.1,3040.2,2.3957]
[1720327175018,3.44057308,3041.0,3040.2,2.3457]
[1720327175217,2.30197,3040.9,3040.3,0.09122814]
[1720327175405,1.138735,3040.8,3040.3,0.09122814]
[1720327175606,1.138735,3040.7,3040.0,2.30262]
[1720327175810,3.0,3040.9,3040.1,2.30254]
[1720327176008,1.138696,3040.8,3040.1,2.39099123]
[1720327176233,1.02030426,3040.8,3040.1,2.39099123]
[1720327176420,2.30181,3041.1,3040.2,2.30247]
[1720327176421,1.02030426,3041.1,3040.2,2.30247]
[1720327176833,1.13866109,3041.0,3040.3,0.0883819]
[1720327177146,3.0,3041.1,3040.4,2.36809489]
[1720327177348,4.02030426,3041.3,3040.5,0.08829069]
[1720327177643,1.13860604,3041.2,3040.5,0.08829069]
[1720327177847,4.02030426,3041.3,3040.5,0.08829069]
[1720327178211,1.13859119,3041.2,3040.6,2.3957]
[1720327178437,3.0,3041.3,3040.6,2.3957]
[1720327178631,3.0,3041.3,3040.7,0.08819949]
[1720327178845,3.32187426,3041.4,3040.7,0.08819949]
[1720327178846,1.02030426,3041.4,3040.7,0.08819949]
[1720327179018,3.0,3041.4,3040.7,0.08819949]
[1720327179222,5.17,3041.5,3040.7,0.08819949]
[1720327180220,3.44010592,3041.4,3040.7,0.08819949]
[1720327180417,2.30159,3041.4,3040.4,2.30232]
[1720327180716,5.30159,3041.4,3040.4,2.30232]
[1720327180916,5.30159,3041.4,3040.5,0.08829069]
[1720327181219,2.4267,3041.2,3040.5,0.08829069]
[1720327181423,2.30203,3040.8,3040.5,0.08829069]
[1720327181623,2.30203,3040.8,3039.8,2.4139061]
[1720327182024,2.30203,3040.8,3039.9,2.39121875]
[1720327182545,2.3022,3040.6,3039.9,0.08851875]
[1720327182734,0.460423,3040.6,3039.9,0.08851875]
[1720327183456,2.762593,3040.6,3039.9,0.08851875]
[1720327183818,2.30258,3040.1,3039.9,0.08851875]
[1720327184335,2.30258,3040.1,3039.8,0.1111261]
[1720327184745,2.3027,3039.9,3039.8,0.1111261]
[1720327184952,2.53297,3039.9,3039.8,0.1111261]
[1720327186336,0.23027,3039.9,3039.8,0.1111261]
[1720327186923,2.53297,3039.9,3039.8,0.1111261]
[1720327187125,2.3027,3039.9,3039.8,0.1111261]
[1720327187350,4.6054,3039.9,3039.8,0.1111261]
[1720327187529,2.3027,3039.9,3039.8,0.1111261]
[1720327188553,3.0,3040.0,3039.8,0.1111261]
[1720327188861,5.30241,3040.3,3039.9,0.08591803]
[1720327189062,2.30255,3040.1,3039.9,0.08591803]
[1720327189270,2.30263,3040.0,3039.8,0.1111261]
[1720327190368,2.3027,3039.9,3039.8,0.1111261]
[1720327190562,5.3027,3039.9,3039.8,0.1111261]
[1720327192148,3.0,3039.9,3039.8,0.1111261]
[1720327192473,2.30265,3040.0,3039.8,0.1111261]
[1720327192655,0.530265,3039.9,3039.8,0.1111261]
[1720327192973,3.530265,3039.9,3039.8,0.1111261]
[1720327193138,5.832965,3039.9,3039.8,0.1111261]
[1720327198655,3.530265,3039.9,3039.8,0.1111261]
[1720327198859,0.530265,3039.9,3039.8,0.1111261]
[1720327199053,3.530265,3039.9,3039.8,0.1111261]
[1720327199598,5.910465,3039.9,3039.8,0.1111261]
[1720327199896,10.515865,3039.9,3039.8,0.1111261]
[1720327200597,0.747241,3040.2,3039.8,0.1111261]
[1720327200800,2.30247,3040.3,3039.8,0.1111261]
[1720327201095,3.0,3040.4,3039.8,0.1111261]
[1720327201401,0.460423,3040.6,3039.8,2.4481261]
[1720327201402,3.0,3040.6,3039.8,2.4481261]
[1720327201692,9.71195,3040.9,3039.8,2.4481261]
[1720327201858,2.30181,3041.1,3040.0,2.30261]
[1720327202259,4.8202,3041.2,3040.1,0.08304776]
[1720327202260,2.30191,3041.0,3040.1,0.08304776]
[1720327202765,2.30189,3041.0,3040.0,2.30261]
[1720327202999,2.30189,3041.0,3040.1,0.08304776]
[1720327203583,3.44076464,3040.9,3040.1,0.08304776]
[1720327203899,3.0,3040.8,3039.9,2.3027]
[1720327204082,2.30195,3040.9,3040.2,0.08300215]
[1720327204283,2.30195,3040.9,3040.0,2.3026]
[1720327204508,2.30195,3040.9,3040.3,0.08295654]
[1720327204684,5.30183,3041.1,3040.0,2.3026]
[1720327204902,5.30183,3041.1,3040.4,0.08291093]
[1720327204903,3.44061496,3041.0,3040.4,0.08291093]
[1720327205105,1.13874496,3040.9,3040.2,2.30247]
[1720327205284,2.44,3041.2,3040.5,0.08286533]
[1720327205687,2.44,3041.2,3040.3,2.36817572]
[1720327205875,2.44,3041.2,3040.6,0.08268898]
[1720327206207,10.624,3041.7,3040.4,2.337]
[1720327206361,2.30174,3041.2,3040.4,4.63932]
[1720327206677,1.13854083,3041.6,3040.4,4.63932]
[1720327206678,2.30143,3041.6,3040.5,2.45060258]
[1720327206864,1.13850951,3041.5,3040.5,0.08259838]
[1720327207067,2.30123,3041.9,3040.9,2.30194]
[1720327207388,2.30128,3041.8,3041.0,0.0822869]
[1720327207899,2.30112,3042.0,3041.0,2.44990073]
[1720327208100,2.30098,3042.2,3041.1,4.63878]
[1720327208299,1.13830435,3042.1,3041.1,4.63878]
[1720327208502,1.13834735,3042.0,3041.2,0.08215399]
[1720327208668,2.3009,3042.3,3041.1,4.63878]
[1720327208862,1.13834796,3042.2,3041.1,4.63878]
[1720327209200,2.30124,3041.9,3041.1,2.337]
[1720327209374,2.30128,3041.8,3041.1,2.337]
[1720327209581,2.30128,3041.8,3041.2,0.08213403]
[1720327209763,2.3015,3041.5,3040.7,2.3951]
[1720327209963,2.3015,3041.5,3040.8,0.08230731]
[1720327210171,2.30167,3041.3,3040.4,2.30232]
[1720327210364,2.30167,3041.3,3040.5,0.0824441]
[1720327211210,3.0,3041.5,3040.6,2.30217]
[1720327211368,3.0,3041.5,3040.7,2.3021]
[1720327211568,2.30142,3041.6,3040.8,0.08235267]
[1720327211773,2.30149,3041.5,3040.8,0.08235267]
[1720327212105,3.0,3041.6,3040.6,2.30216]
[1720327212269,0.530134,3041.6,3040.6,2.30216]
[1720327212471,3.530134,3041.6,3040.7,0.08240734]
[1720327212675,3.530134,3041.6,3040.7,2.38449734]
[1720327212873,2.30104,3042.1,3040.7,2.38449734]
[1720327212874,5.30127,3041.8,3040.7,2.38449734]
[1720327213101,3.0,3041.7,3041.0,2.30186]
[1720327213412,3.0,3041.7,3041.1,0.08222317]
[1720327213577,2.30125,3041.9,3041.1,0.08222317]
[1720327213909,2.30125,3041.9,3041.0,2.30186]
[1720327214075,0.530125,3041.8,3041.0,2.30186]
[1720327214273,3.530125,3041.8,3041.1,0.08222317]
[1720327214475,3.530125,3041.8,3041.0,2.30186]
[1720327214895,3.530125,3041.8,3041.1,0.08222317]
[1720327215394,3.530125,3041.8,3041.0,2.30186]
[1720327215715,0.5831375,3041.7,3041.1,0.08222317]
[1720327216475,2.8844875,3041.7,3040.6,2.30216]
[1720327216674,3.0,3041.6,3041.2,0.08205235]
[1720327216978,5.8844875,3041.7,3040.8,2.30196]
[1720327217288,0.58844875,3041.6,3040.9,0.08218911]
[1720327218321,2.30151,3041.5,3040.9,0.08218911]
[1720327218522,3.0,3041.5,3040.9,0.08218911]
[1720327218823,3.58844875,3041.6,3041.0,0.08214352]
[1720327219228,3.58844875,3041.6,3040.7,2.30203]
[1720327219551,0.58897987,3041.5,3040.7,2.30203]
[1720327219698,0.58897987,3041.5,3040.8,0.0822347]
[1720327220625,0.58897987,3041.5,3040.9,2.3951]
[1720327221126,3.0,3041.8,3041.0,0.08214352]
[1720327221423,3.0,3041.9,3041.0,0.08214352]
[1720327221624,5.30111,3042.0,3041.0,0.08214352]
[1720327221922,5.30111,3042.0,3041.1,2.30178]
[1720327222130,3.0,3041.9,3041.1,2.30178]
[1720327222295,0.530111,3041.8,3041.2,0.08205235]
[1720327222501,2.30111,3042.0,3041.1,2.30178]
[1720327222502,3.0,3041.9,3041.1,2.30178]
[1720327222824,2.30111,3042.0,3041.1,2.30178]
[1720327223028,2.30111,3042.0,3041.0,2.30187]
[1720327223413,2.30111,3042.0,3040.9,2.3951]
[1720327223414,2.30111,3042.0,3041.1,2.38388793]
[1720327224414,1.13836463,3041.9,3041.1,0.08209793]
[1720327224622,0.34394746,3041.8,3041.1,0.08209793]
[1720327224823,0.34394746,3041.8,3041.1,2.30179]
[1720327225020,0.34394746,3041.8,3041.2,0.08205235]
[1720327225825,0.34394746,3041.8,3041.2,2.38376235]
[1720327226030,3.0,3042.1,3041.3,2.30162]
[1720327226334,1.1383488,3042.0,3041.4,0.08196119]
[1720327226641,3.0,3042.2,3041.4,0.08196119]
[1720327226943,1.13834234,3042.1,3041.3,2.30162]
[1720327227106,3.0,3042.2,3041.3,2.30162]
[1720327227107,3.0,3042.2,3041.4,0.08196119]
[1720327227304,1.77021767,3042.1,3041.3,2.30162]
[1720327227624,0.63187581,3042.1,3041.4,0.08196119]
[1720327227826,1.13834214,3042.0,3041.5,2.3951]
[1720327228036,0.63187581,3042.1,3041.5,2.3951]
[1720327228226,1.5014519,3042.0,3041.6,0.08187005]
[1720327228403,0.36318758,3042.0,3041.6,0.08187005]
[1720327229440,1.13825006,3041.9,3041.6,0.08187005]
[1720327229609,0.36318758,3042.0,3041.6,0.08187005]
[1720327229811,1.13826537,3041.9,3041.6,0.08187005]
[1720327230140,1.51852667,3041.8,3041.2,2.392]
[1720327230341,0.3802613,3041.8,3041.2,2.392]
[1720327230559,0.3802613,3041.8,3041.3,0.0819705]
[1720327230845,0.3802613,3041.8,3041.2,2.392]
[1720327231051,1.13830746,3041.7,3041.4,0.08192492]
[1720327231204,3.0,3041.9,3041.3,0.0819705]
[1720327231409,3.0,3042.1,3041.3,0.0819705]
[1720327231604,1.13823283,3042.0,3041.3,0.0819705]
[1720327231831,1.13823283,3041.9,3041.3,2.4182981]
[1720327232037,1.13825113,3041.8,3041.3,2.4182981]
[1720327232250,3.0,3042.1,3041.3,2.4182981]
[1720327232417,1.66833939,3042.0,3041.3,2.4182981]
[1720327232618,1.13824239,3041.9,3041.3,2.4182981]
[1720327233516,1.1382729,3041.8,3041.3,0.1166581]
[1720327233733,1.1382729,3041.7,3041.3,0.1166581]
[1720327233948,0.530097,3042.0,3041.4,0.11658371]
[1720327234253,1.49128117,3041.9,3041.2,4.69371]
[1720327234452,1.13827147,3041.8,3041.5,0.11653699]
[1720327234617,1.13827147,3041.7,3041.2,2.392]
[1720327234819,1.13827147,3041.8,3041.6,0.11649028]
[1720327235152,1.81763037,3041.7,3040.8,2.392]
[1720327235326,1.13838225,3041.6,3041.0,2.30187]
[1720327235524,0.67924812,3041.7,3041.0,2.30187]
[1720327235525,1.13838225,3041.5,3041.0,2.30187]
[1720327235736,0.67924812,3041.7,3041.1,0.11672387]
[1720327235939,1.13833929,3041.6,3041.1,0.11672387]
[1720327236143,1.13833929,3041.5,3041.1,0.11672387]
[1720327236328,1.13833929,3041.6,3041.1,0.11672387]
[1720327236516,1.32009803,3041.6,3041.1,0.11672387]
[1720327236718,1.13833929,3041.5,3041.1,0.11672387]
[1720327237083,1.13833929,3041.5,3041.0,2.392]
[1720327237215,1.13833929,3041.5,3041.2,0.11667715]
[1720327237418,1.13833929,3041.5,3041.0,2.392]
[1720327237613,1.8684119,3041.5,3041.1,0.11672387]
[1720327237920,1.13833929,3041.4,3041.1,2.41844387]
[1720327238149,1.13833929,3042.0,3041.1,2.41844387]
[1720327238347,5.30105,3042.1,3041.1,2.30172]
[1720327238651,1.13830435,3042.0,3041.2,0.11667715]
[1720327238851,1.13830435,3041.9,3041.2,0.11667715]
[1720327239147,1.13830435,3041.8,3041.1,2.30172]
[1720327239361,1.13830435,3041.8,3041.2,2.41839715]